[Event "January 9 Late 2024"]
[Site "https://www.chess.com"]
[Date "2024.01.09"]
[Round "5"]
[White "Firouzja, Alireza"]
[Black "Mikaelyan, Arman"]
[Result "1-0"]
[Board "10"]
[TimeControl "180+1"]
[WhiteFideId "12573981"]
[BlackFideId "13304852"]
[WhiteElo "3162"]
[BlackElo "2843"]
[WhiteTeam "FRA"]
[BlackTeam "ARM"]
[WhiteClock "0:00:29"]
[BlackClock "0:00:00"]

1. e4 {[%clk 0:03:00]}  e5 {[%clk 0:02:59]} 2. Nf3 {[%clk 0:03:00]}  Nc6 {[%clk 0:02:59]} 3. Bb5 {[%clk 0:03:01]}  a6 {[%clk 0:03:00]} 4. Ba4 {[%clk 0:03:01]}  Nf6 {[%clk 0:03:00]} 5. O-O {[%clk 0:03:02]}  Be7 {[%clk 0:03:00]} 6. d3 {[%clk 0:03:02]}  b5 {[%clk 0:02:59]} 7. Bb3 {[%clk 0:03:03]}  d6 {[%clk 0:03:00]} 8. c3 {[%clk 0:03:03]}  O-O {[%clk 0:03:00]} 9. h3 {[%clk 0:03:04]}  Na5 {[%clk 0:02:56]} 10. Bc2 {[%clk 0:03:04]}  c5 {[%clk 0:02:57]} 11. d4 {[%clk 0:03:04]}  cxd4 {[%clk 0:02:41]} 12. cxd4 {[%clk 0:03:04]}  Bb7 {[%clk 0:02:39]} 13. d5 {[%clk 0:02:59]}  Nc4 {[%clk 0:02:26]} 14. Nc3 {[%clk 0:02:54]}  Rc8 {[%clk 0:02:24]} 15. a4 {[%clk 0:02:49]}  b4 {[%clk 0:02:20]} 16. Ne2 {[%clk 0:02:48]}  a5 {[%clk 0:02:13]} 17. Ng3 {[%clk 0:02:37]}  g6 {[%clk 0:02:08]} 18. Bd3 {[%clk 0:02:35]}  Nb6 {[%clk 0:02:01]} 19. Bh6 {[%clk 0:02:34]}  Re8 {[%clk 0:02:00]} 20. Bb5 {[%clk 0:02:29]}  Nfd7 {[%clk 0:01:58]} 21. Nd2 {[%clk 0:02:15]}  Bf8 {[%clk 0:01:54]} 22. Be3 {[%clk 0:02:13]}  Re7 {[%clk 0:01:42]} 23. Qg4 {[%clk 0:02:11]}  Nf6 {[%clk 0:01:28]} 24. Qh4 {[%clk 0:02:09]}  Bg7 {[%clk 0:01:09]} 25. Bg5 {[%clk 0:02:08]}  Rec7 {[%clk 0:01:09]} 26. f4 {[%clk 0:02:08]}  h6 {[%clk 0:01:01]} 27. Bxh6 {[%clk 0:02:06]}  Nxe4 {[%clk 0:00:58]} 28. Qxd8+ {[%clk 0:01:56]}  Rxd8 {[%clk 0:00:59]} 29. Bxg7 {[%clk 0:01:47]}  Nxd2 {[%clk 0:00:48]} 30. Bf6 {[%clk 0:01:47]}  Rdc8 {[%clk 0:00:37]} 31. fxe5 {[%clk 0:01:04]}  Nxf1 {[%clk 0:00:33]} 32. Rxf1 {[%clk 0:01:05]}  Rc1 {[%clk 0:00:23]} 33. exd6 {[%clk 0:01:01]}  Rxf1+ {[%clk 0:00:22]} 34. Nxf1 {[%clk 0:00:59]}  Bxd5 {[%clk 0:00:11]} 35. d7 {[%clk 0:00:55]}  Nxd7 {[%clk 0:00:11]} 36. Bxd7 {[%clk 0:00:56]}  Rc1 {[%clk 0:00:12]} 37. Bb5 {[%clk 0:00:51]}  Bc4 {[%clk 0:00:07]} 38. Bxc4 {[%clk 0:00:50]}  Rxc4 {[%clk 0:00:08]} 39. Nd2 {[%clk 0:00:42]}  Rc1+ {[%clk 0:00:08]} 40. Kh2 {[%clk 0:00:41]}  Ra1 {[%clk 0:00:08]} 41. b3 {[%clk 0:00:39]}  Rd1 {[%clk 0:00:02]} 42. Nc4 {[%clk 0:00:39]}  Rd5 {[%clk 0:00:01]} 43. Be5 {[%clk 0:00:39]}  Kf8 {[%clk 0:00:01]} 44. Bc7 {[%clk 0:00:37]}  Rd3 {[%clk 0:00:02]} 45. Nxa5 {[%clk 0:00:36]}  Ke8 {[%clk 0:00:02]} 46. Bb6 {[%clk 0:00:34]}  Kd7 {[%clk 0:00:02]} 47. Bc5 {[%clk 0:00:34]}  f5 {[%clk 0:00:01]} 48. Bxb4 {[%clk 0:00:34]}  f4 {[%clk 0:00:02]} 49. Nb7 {[%clk 0:00:30]}  Rd2 {[%clk 0:00:00]} 50. Bxd2 {[%clk 0:00:29]} 1-0

[Event "January 9 Late 2024"]
[Site "https://www.chess.com"]
[Date "2024.01.09"]
[Round "5"]
[White "Bluebaum, Matthias"]
[Black "Zhigalko, Sergei"]
[Result "1/2-1/2"]
[Board "11"]
[TimeControl "180+1"]
[WhiteFideId "24651516"]
[BlackFideId "13502956"]
[WhiteElo "3078"]
[BlackElo "2926"]
[WhiteTeam "GER"]
[BlackTeam "BLR"]
[WhiteClock "0:00:55"]
[BlackClock "0:00:03"]

1. d4 {[%clk 0:03:00]}  Nf6 {[%clk 0:03:00]} 2. c4 {[%clk 0:03:01]}  e6 {[%clk 0:03:00]} 3. Nc3 {[%clk 0:03:02]}  Bb4 {[%clk 0:03:00]} 4. e3 {[%clk 0:03:03]}  O-O {[%clk 0:03:00]} 5. Bd2 {[%clk 0:03:03]}  Bxc3 {[%clk 0:02:57]} 6. Bxc3 {[%clk 0:03:04]}  Ne4 {[%clk 0:02:57]} 7. Ne2 {[%clk 0:02:56]}  d6 {[%clk 0:02:54]} 8. Qc2 {[%clk 0:02:55]}  Nxc3 {[%clk 0:02:53]} 9. Nxc3 {[%clk 0:02:56]}  Nd7 {[%clk 0:02:51]} 10. Bd3 {[%clk 0:02:54]}  Nf6 {[%clk 0:02:51]} 11. O-O {[%clk 0:02:49]}  e5 {[%clk 0:02:51]} 12. h3 {[%clk 0:02:36]}  Qe7 {[%clk 0:02:47]} 13. dxe5 {[%clk 0:02:25]}  Qxe5 {[%clk 0:02:41]} 14. Rad1 {[%clk 0:02:24]}  h6 {[%clk 0:02:35]} 15. Nb5 {[%clk 0:02:21]}  Qe7 {[%clk 0:02:32]} 16. Nd4 {[%clk 0:02:19]}  Re8 {[%clk 0:02:31]} 17. Rfe1 {[%clk 0:02:17]}  Qe5 {[%clk 0:02:23]} 18. Bf5 {[%clk 0:02:13]}  Bxf5 {[%clk 0:02:12]} 19. Qxf5 {[%clk 0:02:12]}  Qxf5 {[%clk 0:02:10]} 20. Nxf5 {[%clk 0:02:13]}  a6 {[%clk 0:02:04]} 21. Nd4 {[%clk 0:02:07]}  g6 {[%clk 0:01:59]} 22. f3 {[%clk 0:02:03]}  Kg7 {[%clk 0:01:47]} 23. e4 {[%clk 0:02:03]}  Nd7 {[%clk 0:01:46]} 24. Kf2 {[%clk 0:02:03]}  Ne5 {[%clk 0:01:35]} 25. b3 {[%clk 0:02:03]}  b5 {[%clk 0:01:33]} 26. cxb5 {[%clk 0:01:52]}  axb5 {[%clk 0:01:33]} 27. Nxb5 {[%clk 0:01:53]}  Rxa2+ {[%clk 0:01:32]} 28. Re2 {[%clk 0:01:53]}  Rxe2+ {[%clk 0:01:13]} 29. Kxe2 {[%clk 0:01:54]}  Rb8 {[%clk 0:00:55]} 30. Nxc7 {[%clk 0:01:55]}  Rxb3 {[%clk 0:00:55]} 31. Ne8+ {[%clk 0:01:50]}  Kf8 {[%clk 0:00:54]} 32. Nxd6 {[%clk 0:01:51]}  Rb2+ {[%clk 0:00:34]} 33. Rd2 {[%clk 0:01:49]}  Rxd2+ {[%clk 0:00:34]} 34. Kxd2 {[%clk 0:01:50]}  Ke7 {[%clk 0:00:35]} 35. Nb5 {[%clk 0:01:50]}  h5 {[%clk 0:00:33]} 36. h4 {[%clk 0:01:49]}  Ke6 {[%clk 0:00:31]} 37. Ke3 {[%clk 0:01:49]}  Nc4+ {[%clk 0:00:30]} 38. Kf4 {[%clk 0:01:49]}  Kf6 {[%clk 0:00:28]} 39. Nd4 {[%clk 0:01:49]}  Ne5 {[%clk 0:00:26]} 40. Ne2 {[%clk 0:01:46]}  Nd3+ {[%clk 0:00:24]} 41. Ke3 {[%clk 0:01:46]}  Ne5 {[%clk 0:00:25]} 42. Nc3 {[%clk 0:01:44]}  Ke6 {[%clk 0:00:19]} 43. Kf4 {[%clk 0:01:44]}  Nd3+ {[%clk 0:00:18]} 44. Ke3 {[%clk 0:01:39]}  Ne5 {[%clk 0:00:18]} 45. Nd5 {[%clk 0:01:39]}  Nc4+ {[%clk 0:00:08]} 46. Kf4 {[%clk 0:01:39]}  Nb2 {[%clk 0:00:07]} 47. Kg5 {[%clk 0:01:39]}  Nc4 {[%clk 0:00:07]} 48. g4 {[%clk 0:01:33]}  Ne5 {[%clk 0:00:06]} 49. Kf4 {[%clk 0:01:32]}  hxg4 {[%clk 0:00:05]} 50. fxg4 {[%clk 0:01:33]}  Nd3+ {[%clk 0:00:05]} 51. Kg5 {[%clk 0:01:29]}  Nf2 {[%clk 0:00:04]} 52. Nc3 {[%clk 0:01:27]}  Ke5 {[%clk 0:00:02]} 53. h5 {[%clk 0:01:25]}  gxh5 {[%clk 0:00:01]} 54. gxh5 {[%clk 0:01:25]}  f6+ {[%clk 0:00:01]} 55. Kh4 {[%clk 0:01:14]}  f5 {[%clk 0:00:02]} 56. h6 {[%clk 0:01:04]}  Kf6 {[%clk 0:00:02]} 57. e5+ {[%clk 0:01:04]}  Kg6 {[%clk 0:00:02]} 58. e6 {[%clk 0:01:05]}  Ng4 {[%clk 0:00:02]} 59. Nd5 {[%clk 0:00:59]}  Nxh6 {[%clk 0:00:02]} 60. Ne7+ {[%clk 0:00:53]}  Kf6 {[%clk 0:00:02]} 61. Nxf5 {[%clk 0:00:54]}  Nxf5+ {[%clk 0:00:02]} 62. Kh3 {[%clk 0:00:55]}  Kxe6 {[%clk 0:00:03]} 1/2-1/2

[Event "January 9 Late 2024"]
[Site "https://www.chess.com"]
[Date "2024.01.09"]
[Round "5"]
[White "Grischuk, Alexander"]
[Black "Sanal, Vahap"]
[Result "0-1"]
[Board "12"]
[TimeControl "180+1"]
[WhiteFideId "4126025"]
[BlackFideId "6300545"]
[WhiteElo "3057"]
[BlackElo "2921"]
[WhiteTeam "RUS"]
[BlackTeam "TUR"]
[WhiteClock "0:00:00"]
[BlackClock "0:00:03"]

1. d4 {[%clk 0:02:10]}  d6 {[%clk 0:02:58]} 2. Bf4 {[%clk 0:02:03]}  Nd7 {[%clk 0:02:54]} 3. Nf3 {[%clk 0:02:02]}  Ngf6 {[%clk 0:02:52]} 4. Nc3 {[%clk 0:02:02]}  c5 {[%clk 0:02:49]} 5. d5 {[%clk 0:02:00]}  g6 {[%clk 0:02:41]} 6. e4 {[%clk 0:02:00]}  Bg7 {[%clk 0:02:37]} 7. Bd3 {[%clk 0:01:55]}  O-O {[%clk 0:02:30]} 8. O-O {[%clk 0:01:55]}  a6 {[%clk 0:02:21]} 9. a4 {[%clk 0:01:55]}  Ng4 {[%clk 0:02:12]} 10. Qd2 {[%clk 0:01:46]}  Nge5 {[%clk 0:02:11]} 11. Nxe5 {[%clk 0:01:45]}  Nxe5 {[%clk 0:02:11]} 12. Be2 {[%clk 0:01:45]}  e6 {[%clk 0:02:08]} 13. Rfd1 {[%clk 0:01:36]}  exd5 {[%clk 0:02:06]} 14. Nxd5 {[%clk 0:01:32]}  Be6 {[%clk 0:02:06]} 15. a5 {[%clk 0:01:22]}  Rb8 {[%clk 0:01:30]} 16. Nb6 {[%clk 0:01:07]}  f5 {[%clk 0:01:15]} 17. Qxd6 {[%clk 0:01:03]}  Qxd6 {[%clk 0:01:16]} 18. Rxd6 {[%clk 0:01:03]}  Rbe8 {[%clk 0:01:17]} 19. Be3 {[%clk 0:00:57]}  Nf7 {[%clk 0:01:13]} 20. Rdd1 {[%clk 0:00:48]}  Bxb2 {[%clk 0:01:06]} 21. Rac1 {[%clk 0:00:48]}  Bxc1 {[%clk 0:01:06]} 22. Rxc1 {[%clk 0:00:47]}  Ne5 {[%clk 0:01:02]} 23. Bxc5 {[%clk 0:00:44]}  Rf7 {[%clk 0:01:03]} 24. exf5 {[%clk 0:00:39]}  Bxf5 {[%clk 0:01:00]} 25. Bf1 {[%clk 0:00:38]}  Nc6 {[%clk 0:01:00]} 26. Nc4 {[%clk 0:00:36]}  Rd7 {[%clk 0:00:57]} 27. Bb6 {[%clk 0:00:17]}  Kg7 {[%clk 0:00:51]} 28. Ne3 {[%clk 0:00:16]}  Be6 {[%clk 0:00:50]} 29. h3 {[%clk 0:00:16]}  Bf7 {[%clk 0:00:50]} 30. Rb1 {[%clk 0:00:15]}  Re5 {[%clk 0:00:50]} 31. Ng4 {[%clk 0:00:12]}  Red5 {[%clk 0:00:45]} 32. Ne3 {[%clk 0:00:12]}  Re5 {[%clk 0:00:35]} 33. Ng4 {[%clk 0:00:12]}  Re8 {[%clk 0:00:35]} 34. Ne3 {[%clk 0:00:12]}  h5 {[%clk 0:00:36]} 35. Bd3 {[%clk 0:00:07]}  Re5 {[%clk 0:00:33]} 36. Ra1 {[%clk 0:00:07]}  Nb4 {[%clk 0:00:32]} 37. Bf1 {[%clk 0:00:07]}  g5 {[%clk 0:00:27]} 38. c3 {[%clk 0:00:06]}  Nc6 {[%clk 0:00:26]} 39. Be2 {[%clk 0:00:04]}  Kh6 {[%clk 0:00:26]} 40. Bf1 {[%clk 0:00:04]}  Bg6 {[%clk 0:00:26]} 41. Be2 {[%clk 0:00:05]}  Rd2 {[%clk 0:00:25]} 42. Bf3 {[%clk 0:00:05]}  Re6 {[%clk 0:00:21]} 43. Ra4 {[%clk 0:00:04]}  Ne5 {[%clk 0:00:21]} 44. Bd5 {[%clk 0:00:04]}  Re8 {[%clk 0:00:17]} 45. Bxb7 {[%clk 0:00:04]}  Nd3 {[%clk 0:00:15]} 46. Bxa6 {[%clk 0:00:02]}  Nxf2 {[%clk 0:00:13]} 47. Bf1 {[%clk 0:00:03]}  Ne4 {[%clk 0:00:11]} 48. a6 {[%clk 0:00:03]}  Ng3 {[%clk 0:00:09]} 49. a7 {[%clk 0:00:03]}  Be4 {[%clk 0:00:09]} 50. Ra1 {[%clk 0:00:02]}  Ba8 {[%clk 0:00:09]} 51. Bd4 {[%clk 0:00:02]}  Kg6 {[%clk 0:00:06]} 52. Kh2 {[%clk 0:00:01]}  Nxf1+ {[%clk 0:00:04]} 53. Rxf1 {[%clk 0:00:01]}  Rxe3 {[%clk 0:00:04]} 54. Rf6+ {[%clk 0:00:02]}  Kg7 {[%clk 0:00:03]} 55. Rf2+ {[%clk 0:00:01]}  Rxd4 {[%clk 0:00:03]} 56. cxd4 {[%clk 0:00:02]}  Ra3 {[%clk 0:00:03]} 57. Rf5 {[%clk 0:00:02]}  Kg6 {[%clk 0:00:03]} 58. Rb5 {[%clk 0:00:02]}  Rxa7 {[%clk 0:00:04]} 59. Rb6+ {[%clk 0:00:03]}  Kg7 {[%clk 0:00:04]} 60. Rb5 {[%clk 0:00:02]}  Kg6 {[%clk 0:00:03]} 61. Rb6+ {[%clk 0:00:03]}  Kf5 {[%clk 0:00:04]} 62. Rb5+ {[%clk 0:00:03]}  Kf4 {[%clk 0:00:04]} 63. g3+ {[%clk 0:00:02]}  Kf3 {[%clk 0:00:04]} 64. Rf5+ {[%clk 0:00:03]}  Ke3 {[%clk 0:00:04]} 65. Rxg5 {[%clk 0:00:04]}  Ra1 {[%clk 0:00:04]} 66. Re5+ {[%clk 0:00:00]}  Kf2 {[%clk 0:00:03]} 0-1

[Event "January 9 Late 2024"]
[Site "https://www.chess.com"]
[Date "2024.01.09"]
[Round "5"]
[White "Pranav, V"]
[Black "Gledura, Benjamin"]
[Result "0-1"]
[Board "14"]
[TimeControl "180+1"]
[WhiteFideId "25060783"]
[BlackFideId "712779"]
[WhiteElo "3039"]
[BlackElo "2887"]
[WhiteTeam "IND"]
[BlackTeam "HUN"]
[WhiteClock "0:00:00"]
[BlackClock "0:00:14"]

1. e4 {[%clk 0:03:00]}  c5 {[%clk 0:02:57]} 2. Nf3 {[%clk 0:03:00]}  d6 {[%clk 0:02:57]} 3. d4 {[%clk 0:03:01]}  cxd4 {[%clk 0:02:57]} 4. Nxd4 {[%clk 0:03:02]}  Nf6 {[%clk 0:02:57]} 5. c3 {[%clk 0:03:02]}  Nxe4 {[%clk 0:02:50]} 6. Bb5+ {[%clk 0:03:00]}  Bd7 {[%clk 0:02:48]} 7. Bxd7+ {[%clk 0:03:00]}  Qxd7 {[%clk 0:02:48]} 8. O-O {[%clk 0:03:01]}  Nc6 {[%clk 0:02:38]} 9. Re1 {[%clk 0:03:00]}  d5 {[%clk 0:02:20]} 10. f3 {[%clk 0:02:46]}  Nd6 {[%clk 0:02:16]} 11. Nb3 {[%clk 0:02:45]}  Qf5 {[%clk 0:01:30]} 12. g4 {[%clk 0:02:29]}  Qg6 {[%clk 0:01:30]} 13. Qxd5 {[%clk 0:02:26]}  O-O-O {[%clk 0:01:30]} 14. Bf4 {[%clk 0:02:12]}  h5 {[%clk 0:01:27]} 15. g5 {[%clk 0:01:46]}  e5 {[%clk 0:01:27]} 16. Be3 {[%clk 0:01:36]}  Nf5 {[%clk 0:01:10]} 17. Qe4 {[%clk 0:01:36]}  Nxe3 {[%clk 0:01:10]} 18. Qxg6 {[%clk 0:01:35]}  fxg6 {[%clk 0:01:10]} 19. Rxe3 {[%clk 0:01:36]}  Rd1+ {[%clk 0:01:10]} 20. Kg2 {[%clk 0:01:36]}  Be7 {[%clk 0:01:09]} 21. h4 {[%clk 0:01:32]}  Rhd8 {[%clk 0:01:07]} 22. Re2 {[%clk 0:01:31]}  b6 {[%clk 0:00:54]} 23. N1d2 {[%clk 0:01:29]}  Rxa1 {[%clk 0:00:49]} 24. Nxa1 {[%clk 0:01:30]}  Rf8 {[%clk 0:00:48]} 25. Nc2 {[%clk 0:01:24]}  Kd7 {[%clk 0:00:48]} 26. Ne4 {[%clk 0:01:21]}  Ke6 {[%clk 0:00:47]} 27. Ne3 {[%clk 0:01:18]}  Rd8 {[%clk 0:00:45]} 28. a4 {[%clk 0:01:07]}  Na5 {[%clk 0:00:45]} 29. Rd2 {[%clk 0:01:02]}  Rxd2+ {[%clk 0:00:44]} 30. Nxd2 {[%clk 0:01:03]}  Bc5 {[%clk 0:00:44]} 31. Nc2 {[%clk 0:01:02]}  Nc6 {[%clk 0:00:42]} 32. b4 {[%clk 0:01:02]}  Bf8 {[%clk 0:00:40]} 33. Ne4 {[%clk 0:01:02]}  Ne7 {[%clk 0:00:40]} 34. Ne3 {[%clk 0:00:51]}  Nf5 {[%clk 0:00:41]} 35. Nc4 {[%clk 0:00:22]}  Nxh4+ {[%clk 0:00:40]} 36. Kh3 {[%clk 0:00:22]}  Nxf3 {[%clk 0:00:36]} 37. a5 {[%clk 0:00:21]}  b5 {[%clk 0:00:28]} 38. Na3 {[%clk 0:00:14]}  Kd5 {[%clk 0:00:24]} 39. Nxb5 {[%clk 0:00:13]}  Kxe4 {[%clk 0:00:21]} 40. Nxa7 {[%clk 0:00:13]}  Nxg5+ {[%clk 0:00:19]} 41. Kg2 {[%clk 0:00:12]}  Ne6 {[%clk 0:00:19]} 42. b5 {[%clk 0:00:05]}  Bc5 {[%clk 0:00:15]} 43. Nc8 {[%clk 0:00:03]}  Nc7 {[%clk 0:00:15]} 44. c4 {[%clk 0:00:03]}  Kd4 {[%clk 0:00:14]} 45. b6 {[%clk 0:00:02]}  Na6 {[%clk 0:00:14]} 46. b7 {[%clk 0:00:00]}  Kxc4 {[%clk 0:00:14]} 0-1

[Event "January 9 Late 2024"]
[Site "https://www.chess.com"]
[Date "2024.01.09"]
[Round "5"]
[White "Alekseenko, Kirill"]
[Black "Kokoszczynski, Jan"]
[Result "1-0"]
[Board "17"]
[TimeControl "180+1"]
[WhiteFideId "4135539"]
[BlackFideId "1174460"]
[WhiteElo "2932"]
[BlackElo "2593"]
[WhiteTeam "AUT"]
[BlackTeam "POL"]
[WhiteClock "0:00:28"]
[BlackClock "0:00:03"]

1. e4 {[%clk 0:03:00]}  c5 {[%clk 0:02:59]} 2. Nf3 {[%clk 0:03:01]}  d6 {[%clk 0:02:58]} 3. d4 {[%clk 0:03:01]}  cxd4 {[%clk 0:02:58]} 4. Nxd4 {[%clk 0:03:02]}  Nf6 {[%clk 0:02:59]} 5. Nc3 {[%clk 0:03:03]}  g6 {[%clk 0:02:59]} 6. Be2 {[%clk 0:03:02]}  Bg7 {[%clk 0:02:59]} 7. Be3 {[%clk 0:03:03]}  O-O {[%clk 0:02:59]} 8. O-O {[%clk 0:03:01]}  Nc6 {[%clk 0:03:00]} 9. Nb3 {[%clk 0:03:02]}  Be6 {[%clk 0:02:41]} 10. f4 {[%clk 0:03:02]}  Rc8 {[%clk 0:02:30]} 11. Kh1 {[%clk 0:02:58]}  a6 {[%clk 0:02:09]} 12. f5 {[%clk 0:02:47]}  Bd7 {[%clk 0:01:47]} 13. Qd2 {[%clk 0:02:32]}  Ne5 {[%clk 0:01:48]} 14. Bh6 {[%clk 0:02:29]}  Bc6 {[%clk 0:01:48]} 15. Bd3 {[%clk 0:02:23]}  b5 {[%clk 0:01:47]} 16. a3 {[%clk 0:02:20]}  Nc4 {[%clk 0:01:33]} 17. Bxc4 {[%clk 0:02:15]}  bxc4 {[%clk 0:01:33]} 18. Nd4 {[%clk 0:02:05]}  Bxe4 {[%clk 0:01:33]} 19. Bxg7 {[%clk 0:01:43]}  Kxg7 {[%clk 0:01:33]} 20. Rf4 {[%clk 0:01:43]}  d5 {[%clk 0:01:26]} 21. Rh4 {[%clk 0:01:42]}  h5 {[%clk 0:01:22]} 22. fxg6 {[%clk 0:01:40]}  Bxg6 {[%clk 0:01:09]} 23. Qg5 {[%clk 0:01:38]}  Nh7 {[%clk 0:00:55]} 24. Qe5+ {[%clk 0:01:28]}  Kg8 {[%clk 0:00:25]} 25. Nf5 {[%clk 0:01:15]}  Bxf5 {[%clk 0:00:22]} 26. Qxf5 {[%clk 0:01:16]}  e6 {[%clk 0:00:23]} 27. Qxh5 {[%clk 0:01:14]}  Re8 {[%clk 0:00:17]} 28. Qxh7+ {[%clk 0:01:13]}  Kf8 {[%clk 0:00:18]} 29. Rf1 {[%clk 0:01:11]}  Ke7 {[%clk 0:00:13]} 30. Qxf7+ {[%clk 0:00:55]}  Kd6 {[%clk 0:00:14]} 31. Rh7 {[%clk 0:00:47]}  Rf8 {[%clk 0:00:12]} 32. Qxf8+ {[%clk 0:00:40]}  Qxf8 {[%clk 0:00:13]} 33. Rxf8 {[%clk 0:00:40]}  Rxf8 {[%clk 0:00:13]} 34. Kg1 {[%clk 0:00:40]}  Rb8 {[%clk 0:00:11]} 35. Nd1 {[%clk 0:00:37]}  d4 {[%clk 0:00:10]} 36. Kf2 {[%clk 0:00:35]}  Rf8+ {[%clk 0:00:08]} 37. Ke2 {[%clk 0:00:35]}  Kd5 {[%clk 0:00:08]} 38. c3 {[%clk 0:00:31]}  e5 {[%clk 0:00:07]} 39. h4 {[%clk 0:00:31]}  Ke4 {[%clk 0:00:07]} 40. Rg7 {[%clk 0:00:29]}  d3+ {[%clk 0:00:03]} 41. Kd2 {[%clk 0:00:28]}  Rf1 {[%clk 0:00:03]} 42. Rg4+ {[%clk 0:00:28]}  Kd5 {[%clk 0:00:03]} 43. Ne3+ {[%clk 0:00:28]} 1-0

[Event "January 9 Late 2024"]
[Site "https://www.chess.com"]
[Date "2024.01.09"]
[Round "5"]
[White "Bardyk, Artem"]
[Black "Sevian, Samuel"]
[Result "0-1"]
[Board "18"]
[TimeControl "180+1"]
[WhiteFideId "34349979"]
[BlackFideId "2040506"]
[WhiteElo "2757"]
[BlackElo "3138"]
[WhiteTeam "RUS"]
[BlackTeam "USA"]
[WhiteClock "0:00:17"]
[BlackClock "0:01:05"]

1. e4 {[%clk 0:03:00]}  e5 {[%clk 0:02:58]} 2. Nf3 {[%clk 0:02:59]}  Nc6 {[%clk 0:02:49]} 3. Bc4 {[%clk 0:02:59]}  Nf6 {[%clk 0:02:49]} 4. d3 {[%clk 0:02:59]}  Bc5 {[%clk 0:02:48]} 5. Nc3 {[%clk 0:02:59]}  d6 {[%clk 0:02:46]} 6. Bg5 {[%clk 0:03:00]}  h6 {[%clk 0:02:46]} 7. Bxf6 {[%clk 0:03:00]}  Qxf6 {[%clk 0:02:47]} 8. Nd5 {[%clk 0:03:01]}  Qd8 {[%clk 0:02:48]} 9. c3 {[%clk 0:03:01]}  Ne7 {[%clk 0:02:48]} 10. d4 {[%clk 0:03:00]}  exd4 {[%clk 0:02:49]} 11. cxd4 {[%clk 0:03:00]}  Bb6 {[%clk 0:02:49]} 12. O-O {[%clk 0:02:59]}  Nxd5 {[%clk 0:02:49]} 13. Bxd5 {[%clk 0:03:00]}  O-O {[%clk 0:02:49]} 14. Re1 {[%clk 0:02:59]}  Bg4 {[%clk 0:02:48]} 15. Bxb7 {[%clk 0:02:23]}  Rb8 {[%clk 0:02:48]} 16. Bd5 {[%clk 0:02:24]}  Bxf3 {[%clk 0:02:48]} 17. Qxf3 {[%clk 0:02:24]}  Bxd4 {[%clk 0:02:48]} 18. Rad1 {[%clk 0:02:11]}  Bxb2 {[%clk 0:02:45]} 19. e5 {[%clk 0:02:04]}  Bxe5 {[%clk 0:02:30]} 20. Rxe5 {[%clk 0:02:04]}  dxe5 {[%clk 0:02:30]} 21. Bxf7+ {[%clk 0:02:04]}  Rxf7 {[%clk 0:02:30]} 22. Rxd8+ {[%clk 0:02:05]}  Rxd8 {[%clk 0:02:31]} 23. Qb3 {[%clk 0:02:01]}  c5 {[%clk 0:02:28]} 24. g3 {[%clk 0:01:59]}  Rd2 {[%clk 0:01:58]} 25. Qb8+ {[%clk 0:01:48]}  Kh7 {[%clk 0:01:58]} 26. Qxe5 {[%clk 0:01:48]}  Rdxf2 {[%clk 0:01:50]} 27. Qxc5 {[%clk 0:01:40]}  Rxa2 {[%clk 0:01:49]} 28. Qd4 {[%clk 0:01:30]}  Raf2 {[%clk 0:01:44]} 29. Qe4+ {[%clk 0:01:27]}  g6 {[%clk 0:01:45]} 30. Qa4 {[%clk 0:01:24]}  h5 {[%clk 0:01:44]} 31. Qa5 {[%clk 0:01:16]}  Rb2 {[%clk 0:01:41]} 32. Qa3 {[%clk 0:01:12]}  Rfb7 {[%clk 0:01:39]} 33. Qa5 {[%clk 0:01:02]}  Rc2 {[%clk 0:01:36]} 34. Qe1 {[%clk 0:00:47]}  a5 {[%clk 0:01:36]} 35. Qd1 {[%clk 0:00:42]}  Ra2 {[%clk 0:01:34]} 36. h3 {[%clk 0:00:31]}  a4 {[%clk 0:01:33]} 37. g4 {[%clk 0:00:31]}  hxg4 {[%clk 0:01:30]} 38. hxg4 {[%clk 0:00:32]}  a3 {[%clk 0:01:28]} 39. g5 {[%clk 0:00:30]}  Rab2 {[%clk 0:01:09]} 40. Qd3 {[%clk 0:00:23]}  Rb1+ {[%clk 0:01:05]} 41. Kf2 {[%clk 0:00:20]}  R7b2+ {[%clk 0:01:05]} 42. Kg3 {[%clk 0:00:18]}  Rb3 {[%clk 0:01:05]} 43. Kg4 {[%clk 0:00:16]}  Rxd3 {[%clk 0:01:05]} 44. Kh4 {[%clk 0:00:17]}  Rb4# {[%clk 0:01:05]} 0-1

[Event "January 9 Late 2024"]
[Site "https://www.chess.com"]
[Date "2024.01.09"]
[Round "5"]
[White "Ivanisevic, Ivan"]
[Black "Keymer, Vincent"]
[Result "1-0"]
[Board "20"]
[TimeControl "180+1"]
[WhiteFideId "912417"]
[BlackFideId "12940690"]
[WhiteElo "2754"]
[BlackElo "3049"]
[WhiteTeam "SRB"]
[BlackTeam "GER"]
[WhiteClock "0:00:05"]
[BlackClock "0:00:05"]

1. e4 {[%clk 0:03:00]}  c6 {[%clk 0:02:34]} 2. d4 {[%clk 0:02:54]}  d5 {[%clk 0:02:35]} 3. e5 {[%clk 0:02:55]}  Bf5 {[%clk 0:02:34]} 4. h4 {[%clk 0:02:52]}  h6 {[%clk 0:02:34]} 5. c4 {[%clk 0:02:29]}  e6 {[%clk 0:02:34]} 6. Nc3 {[%clk 0:02:29]}  Ne7 {[%clk 0:02:23]} 7. Nge2 {[%clk 0:02:26]}  dxc4 {[%clk 0:02:18]} 8. Ng3 {[%clk 0:02:25]}  b5 {[%clk 0:02:16]} 9. a4 {[%clk 0:02:24]}  b4 {[%clk 0:02:09]} 10. Nce4 {[%clk 0:02:22]}  Bxe4 {[%clk 0:02:09]} 11. Nxe4 {[%clk 0:02:23]}  Nf5 {[%clk 0:02:10]} 12. Be3 {[%clk 0:02:13]}  Qd5 {[%clk 0:02:02]} 13. Qg4 {[%clk 0:01:06]}  c5 {[%clk 0:01:06]} 14. dxc5 {[%clk 0:00:59]}  Qxe5 {[%clk 0:00:56]} 15. Bxc4 {[%clk 0:00:56]}  Nxe3 {[%clk 0:00:42]} 16. fxe3 {[%clk 0:00:57]}  Bxc5 {[%clk 0:00:41]} 17. Bb5+ {[%clk 0:00:48]}  Ke7 {[%clk 0:00:40]} 18. Rc1 {[%clk 0:00:42]}  Bxe3 {[%clk 0:00:39]} 19. Rc2 {[%clk 0:00:17]}  f5 {[%clk 0:00:38]} 20. Qg6 {[%clk 0:00:16]}  Bd4 {[%clk 0:00:28]} 21. Re2 {[%clk 0:00:12]}  fxe4 {[%clk 0:00:23]} 22. Rxe4 {[%clk 0:00:13]}  Qf6 {[%clk 0:00:24]} 23. Qg4 {[%clk 0:00:11]}  Qf2+ {[%clk 0:00:15]} 24. Kd1 {[%clk 0:00:11]}  Rd8 {[%clk 0:00:16]} 25. Qxe6+ {[%clk 0:00:07]}  Kf8 {[%clk 0:00:16]} 26. Qe7+ {[%clk 0:00:07]}  Kg8 {[%clk 0:00:14]} 27. Qxd8+ {[%clk 0:00:08]}  Kh7 {[%clk 0:00:14]} 28. Qxd4 {[%clk 0:00:08]}  Qxg2 {[%clk 0:00:12]} 29. Bd3 {[%clk 0:00:09]}  Nc6 {[%clk 0:00:02]} 30. Re2+ {[%clk 0:00:05]}  Kh8 {[%clk 0:00:03]} 31. Rxg2 {[%clk 0:00:05]}  Nxd4 {[%clk 0:00:03]} 32. Rhg1 {[%clk 0:00:05]}  Rd8 {[%clk 0:00:04]} 33. Rxg7 {[%clk 0:00:05]}  Nf3 {[%clk 0:00:05]} 34. Rh7# {[%clk 0:00:05]} 1-0